[Event "Mitropa Cup Open 2024"]
[Site "Apolda"]
[Date "2024.02.22"]
[Round "8.12"]
[White "Perossa, Nicolas"]
[Black "Novosel, Lovro"]
[Result "0-1"]
[ECO "B30"]
[WhiteElo "2277"]
[BlackElo "2373"]
[Annotator "RC"]
[PlyCount "174"]
[EventDate "2024.02.15"]
[EventType "team-tourn"]
[EventCountry "GER"]
[SourceTitle "playchess.com"]
[Source "ChessBase"]
[SourceQuality "1"]
[WhiteTeam "Italy"]
[BlackTeam "Croatia"]
[WhiteTeamCountry "ITA"]
[BlackTeamCountry "CRO"]
[TimeControl "40/5400+30:1800+30"]

1. e4 {[%emt 0:00:02]} c5 {[%emt 0:00:11]} 2. Nf3 {[%emt 0:00:07]} e6 {[%emt 0:00:11]} 3. g3 {[%emt 0:00:34]} Nc6 {[%emt 0:00:07]} 4. Bg2 {[%emt 0:00:06]} Nf6 {[%emt 0:00:30]} 5. d3 {[%emt 0:00:06]} d6 {[%emt 0:00:48]} 6. O-O {[%emt 0:00:30]} Be7 {[%emt 0:00:06]} 7. Re1 {[%emt 0:06:51]} O-O {[%emt 0:01:50]} 8. c3 {[%emt 0:13:08]} d5 {[%emt 0:16:13]} 9. e5 {[%emt 0:02:28]} Nd7 {[%emt 0:00:18]} 10. h4 {[%emt 0:06:23]} a6 {[%emt 0:08:59]} 11. Bf4 {[%emt 0:05:48]} b5 {[%emt 0:00:18]} 12. Nbd2 {[%emt 0:04:51]} c4 {[%emt 0:15:30]} 13. d4 {[%emt 0:05:13]} b4 {[%emt 0:00:18]} 14. h5 {[%emt 0:06:54]} Qa5 {[%emt 0:07:54]} 15. Re3 {[%emt 0:11:11]} bxc3 {[%emt 0:01:39]} 16. bxc3 {[%emt 0:00:07]} Rb8 {[%emt 0:00:48]} 17. Nh2 {[%emt 0:16:45]} Na7 {[%emt 0:02:57]} 18. Qg4 {[%emt 0:01:41]} Kh8 {[%emt 0:02:15]} 19. h6 {[%emt 0:00:27]} g6 {[%emt 0:00:16]} 20. Bg5 {[%emt 0:00:28]} Bxg5 {[%emt 0:03:32]} 21. Qxg5 {[%emt 0:00:01]} Rb2 {[%emt 0:03:16]} 22. Rf3 {[%emt 0:03:59]} Nb5 {[%emt 0:01:30]} 23. Nb1 {[%emt 0:13:13]} f6 {[%emt 0:28:39]} 24. exf6 {[%emt 0:00:34]} Rxa2 {[%emt 0:00:05]} 25. Rxa2 {[%emt 0:00:13]} Qxa2 {[%emt 0:00:02]} 26. Qc1 {[%emt 0:01:07]} Rxf6 {[%emt 0:01:15]} 27. Bf1 {[%emt 0:00:14]} Kg8 {[%emt 0:03:59]} 28. Qg5 {[%emt 0:00:47]} Kf7 {[%emt 0:00:31]} 29. Nd2 {[%emt 0:00:39]} Qa3 {[%emt 0:00:16]} 30. Ng4 {[%emt 0:00:23]} Rxf3 {[%emt 0:00:44]} 31. Nxf3 {[%emt 0:00:02]} Qe7 {[%emt 0:00:09]} 32. Nfe5+ {[%emt 0:00:46]} Nxe5 {[%emt 0:00:01]} 33. Qxe5 {[%emt 0:00:16]} Qf8 {[%emt 0:01:18]} 34. Qb8 {[%emt 0:00:39]} Nd6 {[%emt 0:00:33]} 35. Ne5+ {[%emt 0:00:19]} Kg8 {[%emt 0:01:02]} 36. Qc7 {[%emt 0:00:55]} a5 {[%emt 0:00:00]} 37. Qxa5 {[%emt 0:00:28]} Qxh6 {[%emt 0:00:00]} 38. Qc7 {[%emt 0:00:13]} Qf8 {[%emt 0:00:08]} 39. Nc6 {[%emt 0:00:11]} Kh8 {[%emt 0:01:07]} 40. Ne7 {[%emt 0:00:40]} Ne8 {[%emt 0:00:02]} 41. Qe5+ {[%emt 0:30:21]} Ng7 {[%emt 0:30:32]} 42. Qc7 {[%emt 0:00:00]} Ba6 {[%emt 0:00:00]} 43. Qd6 {[%emt 0:00:00]} Qe8 {[%emt 0:00:00]} 44. Nxd5 {[%emt 0:00:00]} exd5 {[%emt 0:00:00]} 45. Qxa6 {[%emt 0:00:00]} Nf5 {[%emt 0:00:00]} 46. g4 {[%emt 0:00:00]} Ne7 {[%emt 0:00:00]} 47. Qe6 {[%emt 0:00:00]} Kg7 {[%emt 0:00:00]} 48. Qe5+ {[%emt 0:00:00]} Kg8 {[%emt 0:00:00]} 49. Bg2 {[%emt 0:00:00]} Qf7 {[%emt 0:00:00]} 50. f4 {[%emt 0:01:33]} Kf8 {[%emt 0:00:00]} 51. Bh1 {[%emt 0:01:14]} Ke8 {[%emt 0:00:00]} 52. Qb8+ {[%emt 0:00:45]} Kd7 {[%emt 0:00:00]} 53. Bf3 {[%emt 0:01:00]} Qe6 {[%emt 0:00:00]} 54. Kf2 {[%emt 0:00:44]} h6 {[%emt 0:00:00]} 55. Bd1 {[%emt 0:01:26]} Qe4 {[%emt 0:00:00]} 56. Ba4+ {[%emt 0:01:22]} Ke6 {[%emt 0:00:01]} 57. Qc7 {[%emt 0:00:43]} Kf7 {[%emt 0:01:36]} 58. Qd6 {[%emt 0:00:30]} g5 {[%emt 0:05:46]} 59. f5 {[%emt 0:00:30]} h5 {[%emt 0:00:07]} 60. f6 {[%emt 0:00:31]} Ng8 {[%emt 0:00:10]} 61. gxh5 {[%emt 0:00:26]} Nxf6 {[%emt 0:00:18]} 62. Qc7+ {[%emt 0:00:33]} Kf8 {[%emt 0:01:37]} 63. Qd8+ {[%emt 0:00:19]} Kg7 {[%emt 0:00:01]} 64. Bd1 {[%emt 0:00:42]} Qf4+ {[%emt 0:00:36]} 65. Ke1 {[%emt 0:00:20]} g4 {[%emt 0:01:06]} 66. Qe7+ {[%emt 0:00:08]} Kh6 {[%emt 0:00:05]} 67. Qe5 {[%emt 0:00:52]} Qg5 {[%emt 0:00:35]} 68. Kf1 {[%emt 0:00:40]} Kxh5 {[%emt 0:00:27]} 69. Qh2+ {[%emt 0:00:04]} Qh4 {[%emt 0:01:18]} 70. Qe5+ {[%emt 0:00:02]} Kh6 {[%emt 0:00:08]} 71. Qf4+ {[%emt 0:00:12]} Qg5 {[%emt 0:00:24]} 72. Qh2+ {[%emt 0:01:33]} Qh5 {[%emt 0:00:09]} 73. Qf4+ {[%emt 0:00:06]} Kg7 {[%emt 0:00:08]} 74. Qc7+ {[%emt 0:00:04]} Qf7 {[%emt 0:00:05]} 75. Qe5 {[%emt 0:00:28]} Kf8 {[%emt 0:01:20]} 76. Qd6+ {[%emt 0:01:19]} Qe7 {[%emt 0:00:34]} 77. Qf4 {[%emt 0:00:12]} Qf7 {[%emt 0:01:01]} 78. Qd6+ {[%emt 0:00:23]} Kg8 {[%emt 0:00:40]} 79. Qb8+ {[%emt 0:00:32]} Qf8 {[%emt 0:01:11]} 80. Qb2 {[%emt 0:00:34]} Ne4+ {[%emt 0:00:19]} 81. Ke1 {[%emt 0:00:50]} Qf4 {[%emt 0:00:19]} 82. Qa2 {[%emt 0:00:35]} Qe3+ {[%emt 0:00:19]} 83. Kf1 {[%emt 0:00:24]} Qd3+ {[%emt 0:00:28]} 84. Kg2 {[%emt 0:01:14]} Qxd1 {[%emt 0:00:24]} 85. Qa8+ {[%emt 0:00:00]} Kg7 {[%emt 0:00:03]} 86. Qb7+ {[%emt 0:00:00]} Kg6 {[%emt 0:00:12]} 87. Qc6+ {[%emt 0:00:00]} Nf6 {[%emt 0:00:04]} 0-1

[Event "Mitropa Cup Open 2024"]
[Site "Apolda"]
[Date "2024.02.22"]
[Round "8.13"]
[White "Girel, Joseph"]
[Black "Vykouk, Jan"]
[Result "1/2-1/2"]
[ECO "E01"]
[WhiteElo "2492"]
[BlackElo "2493"]
[Annotator "TA"]
[PlyCount "65"]
[EventDate "2024.02.15"]
[EventType "team-tourn"]
[EventCountry "GER"]
[SourceTitle "playchess.com"]
[Source "ChessBase"]
[SourceQuality "1"]
[WhiteTeam "France"]
[BlackTeam "Czech Republic"]
[WhiteTeamCountry "FRA"]
[BlackTeamCountry "CZE"]
[TimeControl "40/5400+30:1800+30"]

{[%evp 11,65,17,17,14,25,7,18,5,17,27,30,34,22,7,6,-6,-8,-9,0,0,13,16,12,6,22,11,10,11,11,0,0,0,0,0,0,0,0,0,0,0,0,0,0,0,0,0,0,0,0,0,0,0,0,0,0,-316]} 1. d4 {[%emt 0:00:05]} Nf6 {[%emt 0:00:04]} 2. c4 {[%emt 0:00:22]} e6 {[%emt 0:00:05]} 3. g3 {[%emt 0:01:55]} d5 {[%emt 0:00:22]} 4. Bg2 {[%emt 0:00:27]} Bb4+ {[%emt 0:00:12]} 5. Nd2 {[%emt 0:01:52]} O-O {[%emt 0:01:04]} 6. Ngf3 {[%emt 0:00:09]} Nbd7 {[%emt 0:11:36]} 7. O-O {[%emt 0:02:26]} b6 {[%emt 0:03:37]} 8. b3 {[%emt 0:07:04]} Bb7 {[%emt 0:03:24]} 9. Bb2 {[%emt 0:00:26]} Be7 {[%emt 0:03:40]} 10. Rc1 {[%emt 0:03:30]} c5 {[%emt 0:04:24]} 11. cxd5 {[%emt 0:03:32]} Bxd5 {[%emt 0:00:43]} 12. Nc4 {[%emt 0:02:01] The position is equal.} Rc8 {[%emt 0:00:44]} 13. Qd3 {[%emt 0:07:08]} Qc7 {[%emt 0:03:25]} 14. Nfe5 {[%emt 0:04:46]} Bxg2 {[%emt 0:03:23]} 15. Kxg2 {[%emt 0:00:25]} Qb7+ {[%emt 0:05:44]} 16. Qf3 {[%emt 0:00:57]} Qxf3+ {[%emt 0:01:18]} 17. Kxf3 {[%emt 0:00:35]} b5 {[%emt 0:04:24]} 18. Nxd7 {[%emt 0:04:14]} Nxd7 {[%emt 0:00:05]} 19. Na5 {[%emt 0:10:14]} Bf6 {[%emt 0:03:47]} 20. Rfd1 {[%emt 0:08:51]} cxd4 {[%emt 0:01:50]} 21. Rxc8 {[%emt 0:02:28]} Rxc8 {[%emt 0:00:13]} 22. Bxd4 {[%emt 0:01:31]} Bxd4 {[%emt 0:00:38]} 23. Rxd4 $11 {[%emt 0:00:13][%mdl 4096] Endgame. KRN-KRN} Rc7 {[%emt 0:00:44]} 24. Ke3 {[%emt 0:05:21]} Kf8 {[%emt 0:00:11]} 25. Rd6 {[%emt 0:02:55]} Ke7 {[%emt 0:00:57]} 26. Rc6 {[%emt 0:03:50]} Rxc6 {[%emt 0:04:03]} 27. Nxc6+ {[%emt 0:00:11] KN-KN} Kd6 {[%emt 0:00:03]} 28. Nxa7 {[%emt 0:03:38][%cal Ob3b4] [#] Black must now prevent b4!} Kc5 {[%emt 0:00:05]} 29. a3 {[%emt 0:08:10]} Kb6 {[%emt 0:02:10]} 30. Nc8+ {[%emt 0:00:08]} Kc7 {[%emt 0:00:03]} 31. Na7 {[%emt 0:00:46]} Kb6 {[%emt 0:00:06]} 32. Nc8+ {[%emt 0:00:09]} Kc7 {[%emt 0:00:04]} 33. Ke4 $2 {[%emt 0:16:41][%mdl 40960] Weighted Error Value: White=0.03 (flawless) /Black=0.03 (flawless) .  Loses game:     	White=1     	---        OK:         	White=13    	Black=13     Best:        	---       	Black=3     . An unexpected result.} 1/2-1/2

[Event "Mitropa Cup Open 2024"]
[Site "Apolda"]
[Date "2024.02.22"]
[Round "8.14"]
[White "Kraus, Tomas"]
[Black "Makkar, Rajat"]
[Result "1-0"]
[ECO "C50"]
[WhiteElo "2484"]
[BlackElo "2453"]
[Annotator "TA"]
[PlyCount "77"]
[EventDate "2024.02.15"]
[EventType "team-tourn"]
[EventCountry "GER"]
[SourceTitle "playchess.com"]
[Source "ChessBase"]
[SourceQuality "1"]
[WhiteTeam "Czech Republic"]
[BlackTeam "France"]
[WhiteTeamCountry "CZE"]
[BlackTeamCountry "FRA"]
[TimeControl "40/5400+30:1800+30"]

{[%evp 10,77,10,9,22,22,25,13,20,2,28,19,39,0,0,0,0,0,5,12,16,12,24,27,21,23,22,23,79,69,108,96,103,58,62,58,54,45,32,0,43,5,133,117,182,175,188,129,329,316,320,322,418,414,429,411,396,404,537,550,1587,1604,1299,960,6528,6083,29993,29994,29994,29995]} 1. e4 {[%emt 0:00:25]} e5 {[%emt 0:00:19]} 2. Nf3 {[%emt 0:00:21]} Nc6 {[%emt 0:00:06]} 3. Bc4 {[%emt 0:01:00]} Bc5 {[%emt 0:00:11]} 4. d3 {[%emt 0:01:06]} Nf6 {[%emt 0:00:37]} 5. Bg5 {[%emt 0:01:02][%cal Bc1g5,Bg5h4,Bh4g3][%mdl 32]} h6 {[%emt 0:01:05]} 6. Bh4 {[%emt 0:00:07]} Be7 {[%emt 0:01:08]} 7. Bg3 {[%emt 0:00:16]} d6 {[%emt 0:00:35]} 8. a4 {[%emt 0:01:05]} a6 {[%emt 0:00:48] The position is equal.} 9. O-O {[%emt 0:05:01]} O-O {[%emt 0:01:37]} 10. a5 {[%emt 0:05:37]} Kh8 {[%emt 0:05:27]} 11. Nc3 {[%emt 0:08:31]} Bg4 {[%emt 0:03:58] Strongly threatening ...Nd4.} 12. h3 {[%emt 0:09:45]} Bh5 {[%emt 0:00:35]} 13. Bh2 $1 {[%emt 0:10:43]} Qd7 {[%emt 0:02:28] White must now prevent ...Nd4.} 14. Nd5 {[%emt 0:03:25]} Nxd5 {[%emt 0:09:21]} 15. Bxd5 {[%emt 0:03:34]} Bxf3 {[%emt 0:01:17]} 16. Qxf3 {[%emt 0:00:56][%cal Oc2c3]} Nd4 {[%emt 0:00:42]} 17. Qd1 {[%emt 0:03:17]} c6 {[%emt 0:00:17]} 18. Ba2 {[%emt 0:02:42]} f5 {[%emt 0:01:40]} (18... Ne6 $11) 19. c3 $16 {[%emt 0:02:45]} Ne6 {[%emt 0:00:55]} 20. exf5 {[%emt 0:01:07]} Rxf5 {[%emt 0:00:52]} 21. Qg4 {[%emt 0:07:28]} Raf8 {[%emt 0:05:49]} 22. Rae1 {[%emt 0:00:47] d4 is the strong threat. White is more active.} h5 {[%emt 0:20:09]} 23. Qe2 $36 {[%emt 0:06:12][%cal Od3d4][%mdl 2048] White is pushing.} Bh4 {[%emt 0:02:25]} 24. g3 {[%emt 0:02:38]} Bd8 {[%emt 0:01:52]} 25. f4 {[%emt 0:03:42][%cal Od3d4] next d4! is good for White.} (25. d4 $5) 25... Bxa5 {[%emt 0:10:13]} (25... d5 $1 $11) 26. d4 $1 {[%emt 0:01:51]} h4 {[%emt 0:05:11] [#]} 27. Bb1 $1 $18 {[%emt 0:09:01]} Nxd4 {[%emt 0:04:02] [#]} 28. cxd4 {[%emt 0:01:18]} ({Better is} 28. Qg4 $1 $18 {b4 would now be deadly.} Qf7 29. cxd4 (29. Qxh4+ Rh5 $18) (29. gxh4 Rf6 $16) 29... Bxe1 (29... hxg3 $2 30. Bxf5 Qxf5 31. Qxf5 $18) 30. Bxf5 (30. Rxe1 hxg3 31. Bxg3 exf4 $18) (30. Qxf5 Qxf5 31. Bxf5 hxg3 $15) 30... Qxf5 31. Qxh4+ (31. Rxe1 hxg3 32. Bxg3 exf4 $18) 31... Kg8 32. Rxe1) 28... Bxe1 {[%emt 0:01:24] A mistake that costs the game.} (28... hxg3 $16 29. Bxf5 (29. Bxg3 Bxe1 30. Bxe1 exf4 $18) 29... Rxf5 30. Bxg3 Bxe1 31. Rxe1 (31. Bxe1 exd4 32. Bd2 Kg8 $11) 31... exd4) 29. Bxf5 {[%emt 0:01:18]} ({Not} 29. Qxe1 hxg3 30. Bxg3 (30. Bxf5 $2 gxh2+ 31. Kxh2 Qxf5 $19) 30... exd4 $16) 29... Qxf5 {[%emt 0:01:45]} 30. g4 {[%emt 0:00:18][%cal Bg3g4,Bg4g5,Bg5f6][%mdl 32]} ({Weaker is} 30. Qxe1 hxg3 31. Bxg3 (31. Qxg3 exd4 32. Qg4 c5 $11) 31... exd4 $11) 30... Qf7 {[%emt 0:02:25]} 31. Qxe1 {[%emt 0:01:33]} exd4 {[%emt 0:00:28][%cal Be5d4,Bd4d3,Bd3d2][%mdl 32]} 32. Qxh4+ {[%emt 0:00:35]} Kg8 {[%emt 0:00:02]} 33. f5 {[%emt 0:00:35][%cal Og4g5]} d3 {[%emt 0:00:22]} 34. Bxd6 {[%emt 0:02:48]} Re8 {[%emt 0:00:10]} 35. g5 {[%emt 0:00:45] White wants to mate with g6.} Qd5 {[%emt 0:03:17] [#]} 36. f6 $1 {[%emt 0:01:30][%cal Og5g6]} gxf6 {[%emt 0:04:36] [#]} (36... Qf7 37. fxg7) 37. gxf6 $1 {[%emt 0:01:03] Intending Qg4+ and mate.} d2 {[%emt 0:02:48]} (37... Kf7 38. Qh7+) 38. Qg4+ {[%emt 0:00:29]} Kf7 {[%emt 0:00:03]} 39. Qd7+ {[%emt 0:00:06] Weighted Error Value: White=0.11 (very precise) /Black=0.64.  Loses game:     	---       	Black=1      Mistake:       	White=1     	Black=3      Inaccurate:     	White=4     	Black=5      OK:         	White=11    	Black=10     Best:        	White=3     	Black=2      Strong:       	White=2     	---} 1-0

[Event "Mitropa Cup Open 2024"]
[Site "Apolda"]
[Date "2024.02.22"]
[Round "8.15"]
[White "Velten, Paul"]
[Black "Gnojek, Petr"]
[Result "1/2-1/2"]
[ECO "A80"]
[WhiteElo "2470"]
[BlackElo "2428"]
[Annotator "TA"]
[PlyCount "61"]
[EventDate "2024.02.15"]
[EventType "team-tourn"]
[EventCountry "GER"]
[SourceTitle "playchess.com"]
[Source "ChessBase"]
[SourceQuality "1"]
[WhiteTeam "France"]
[BlackTeam "Czech Republic"]
[WhiteTeamCountry "FRA"]
[BlackTeamCountry "CZE"]
[TimeControl "40/5400+30:1800+30"]

{[%evp 9,61,0,-7,0,0,-23,35,32,23,18,42,38,64,50,63,65,67,60,66,63,62,58,64,64,80,76,72,54,53,57,104,80,115,41,78,55,53,44,36,37,41,40,96,96,96,96,96,96,96,26,33,30,22,24]} 1. d4 {[%emt 0:00:40]} f5 {[%emt 0:00:24][%cal Bf7f5,Bf5g4,Bg4g3][%mdl 32]} 2. Nc3 {[%emt 0:01:04]} Nf6 {[%emt 0:01:21]} 3. Bg5 {[%emt 0:00:16]} d5 {[%emt 0:00:37]} 4. e3 {[%emt 0:01:06]} e6 {[%emt 0:00:14]} 5. g4 {[%emt 0:00:17]} fxg4 {[%emt 0:01:20]} 6. h3 {[%emt 0:00:12]} g3 {[%emt 0:02:01]} 7. f4 {[%emt 0:00:07]} Nc6 {[%emt 0:11:39]} (7... c5 $11) 8. Qf3 {[%emt 0:02:21][%cal Oe1c1] White is slightly better.} Bd7 $1 {[%emt 0:02:54]} 9. a3 {[%emt 0:03:31][%cal Of1d3]} Qe7 {[%emt 0:04:34]} 10. Qxg3 {[%emt 0:03:59]} h6 {[%emt 0:05:27]} 11. Bh4 {[%emt 0:03:10]} O-O-O {[%emt 0:00:39]} 12. Nf3 {[%emt 0:00:32]} Qf7 {[%emt 0:12:20]} 13. O-O-O {[%emt 0:05:25]} Be7 {[%emt 0:03:13]} 14. Bd3 {[%emt 0:06:23]} Nh5 {[%emt 0:01:48]} 15. Qg6 {[%emt 0:05:38]} Qxg6 {[%emt 0:01:17]} 16. Bxg6 {[%emt 0:00:06]} Bxh4 {[%emt 0:00:06]} 17. Nxh4 {[%emt 0:01:36]} Be8 {[%emt 0:00:36]} 18. Rhg1 {[%emt 0:00:21]} Bxg6 {[%emt 0:01:16]} 19. Rxg6 {[%emt 0:01:37]} Kd7 {[%emt 0:08:30]} (19... Rde8 $14 {might be stronger.}) 20. Nf3 $16 {[%emt 0:05:43][%cal Bh4f3,Bf3e5,Be5g6][%mdl 32]} Rhf8 {[%emt 0:02:48] [#]} 21. Rdg1 {[%emt 0:01:28] White is more active.} (21. Ne5+ $1 $16 Ke7 22. Nxc6+ bxc6 23. Na4) 21... a6 {[%emt 0:02:48]} 22. Ne2 {[%emt 0:00:49]} Ne7 {[%emt 0:07:05]} 23. Ne5+ {[%emt 0:00:12]} Kd6 {[%emt 0:00:03]} 24. R6g2 {[%emt 0:00:13]} Nf5 {[%emt 0:00:29]} 25. Kd2 {[%emt 0:00:21]} c5 {[%emt 0:00:37]} ({Better is} 25... c6 $14) 26. dxc5+ {[%emt 0:02:12]} Kxc5 {[%emt 0:00:18]} 27. c3 {[%emt 0:00:11]} Kd6 {[%emt 0:02:13]} 28. Ng6 {[%emt 0:00:58] Dodges g5} Rf7 {[%emt 0:00:42] [#]} 29. Nd4 {[%emt 0:00:21]} (29. Kd3 $1 $16) 29... Nxd4 $1 $11 {[%emt 0:02:40]} 30. cxd4 {[%emt 0:00:06]} Rc8 {[%emt 0:00:29]} 31. Rc1 {[%emt 0:07:26] Weighted Error Value: White=0.10 (very precise) /Black=0.13 (very precise) .  Mistake:       	White=2     	Black=3      Inaccurate:     	---       	Black=3      OK:         	White=12    	Black=7      Best:        	White=1     	Black=2      Strong:       	---       	Black=2} 1/2-1/2

[Event "Mitropa Cup Open 2024"]
[Site "Apolda"]
[Date "2024.02.22"]
[Round "8.16"]
[White "Nemec, Jachym"]
[Black "Decuigniere, Tom"]
[Result "1/2-1/2"]
[ECO "D35"]
[WhiteElo "2393"]
[BlackElo "2401"]
[Annotator "TA"]
[PlyCount "60"]
[EventDate "2024.02.15"]
[EventType "team-tourn"]
[EventCountry "GER"]
[SourceTitle "playchess.com"]
[Source "ChessBase"]
[SourceQuality "1"]
[WhiteTeam "Czech Republic"]
[BlackTeam "France"]
[WhiteTeamCountry "CZE"]
[BlackTeamCountry "FRA"]
[TimeControl "40/5400+30:1800+30"]

{[%evp 11,60,30,31,5,18,9,22,10,19,8,13,12,22,4,21,6,4,0,0,-5,7,8,5,6,0,0,0,0,3,0,10,10,10,10,19,13,18,13,19,14,20,21,14,10,10,10,10,0,10,0,10]} 1. d4 {[%emt 0:00:03]} d5 {[%emt 0:00:05]} 2. c4 {[%emt 0:00:12]} e6 {[%emt 0:00:06]} 3. Nc3 {[%emt 0:00:15]} Nf6 {[%emt 0:00:09]} 4. cxd5 {[%emt 0:00:21]} exd5 {[%emt 0:00:06]} 5. Bg5 {[%emt 0:00:06]} Bb4 {[%emt 0:00:07]} 6. e3 {[%emt 0:00:58]} h6 {[%emt 0:00:11]} 7. Bxf6 {[%emt 0:04:03]} Qxf6 {[%emt 0:00:12] The position is equal.} 8. Qb3 {[%emt 0:00:04][%csl LRb4,LRd5]} Qd6 {[%emt 0:01:19]} 9. a3 {[%emt 0:01:01]} Bxc3+ {[%emt 0:00:05]} 10. Qxc3 {[%emt 0:01:36]} Bf5 {[%emt 0:00:26]} 11. Ne2 {[%emt 0:01:31]} Nd7 {[%emt 0:03:29]} 12. Nf4 {[%emt 0:03:40]} O-O {[%emt 0:07:57]} 13. Bd3 {[%emt 0:01:01]} Bxd3 {[%emt 0:00:40]} 14. Nxd3 {[%emt 0:00:07]} a5 {[%emt 0:00:10]} 15. a4 {[%emt 0:00:59]} Rfe8 {[%emt 0:08:11]} 16. O-O {[%emt 0:00:46]} c6 {[%emt 0:00:04]} 17. Rab1 {[%emt 0:02:48]} Nf6 {[%emt 0:04:28]} 18. b4 {[%emt 0:09:34]} Ne4 {[%emt 0:00:12]} 19. Qc2 {[%emt 0:00:56]} axb4 {[%emt 0:00:42]} 20. Rxb4 {[%emt 0:00:17]} Ra7 {[%emt 0:04:22]} 21. Rfb1 {[%emt 0:00:50]} Qc7 {[%emt 0:02:13]} 22. Nc5 {[%emt 0:04:32]} Nxc5 {[%emt 0:04:21]} 23. Qxc5 {[%emt 0:04:00]} Rea8 {[%emt 0:00:12]} 24. g3 {[%emt 0:02:28]} g6 {[%emt 0:00:38]} 25. Kg2 {[%emt 0:01:37]} Kg7 {[%emt 0:00:13]} 26. R1b2 {[%emt 0:00:49]} h5 {[%emt 0:00:43]} 27. h4 {[%emt 0:00:16]} Kg8 {[%emt 0:01:30]} 28. Rb1 {[%emt 0:00:31]} Kg7 {[%emt 0:00:05]} 29. R1b2 {[%emt 0:00:24]} Kg8 {[%emt 0:00:05]} 30. Rb1 {[%emt 0:00:06]} Kg7 {[%emt 1:02:29] A rather calm draw.   Weighted Error Value: White=0.05 (flawless) /Black=0.02 (flawless) .  OK:         	White=6     	Black=14} 1/2-1/2

[Event "Mitropa Cup Open 2024"]
[Site "Apolda"]
[Date "2024.02.22"]
[Round "8.17"]
[White "Svane, Rasmus"]
[Black "Subelj, Jan"]
[Result "1/2-1/2"]
[ECO "D02"]
[WhiteElo "2637"]
[BlackElo "2512"]
[Annotator "TA"]
[PlyCount "61"]
[EventDate "2024.02.15"]
[EventType "team-tourn"]
[EventCountry "GER"]
[SourceTitle "playchess.com"]
[Source "ChessBase"]
[SourceQuality "1"]
[WhiteTeam "Germany"]
[BlackTeam "Slovenia"]
[WhiteTeamCountry "GER"]
[BlackTeamCountry "SLO"]
[TimeControl "40/5400+30:1800+30"]

{[%evp 11,61,25,20,18,25,0,17,-1,16,11,48,31,43,43,48,59,50,51,51,50,50,50,50,64,75,41,44,29,30,0,0,0,0,-16,-12,-33,-38,-20,-20,-22,-7,-28,0,0,0,0,0,0,0,0,0,0]} 1. d4 {[%emt 0:00:03]} d5 {[%emt 0:00:19]} 2. Nf3 {[%emt 0:00:16]} Nf6 {[%emt 0:00:15]} 3. Bf4 {[%emt 0:00:08]} c5 {[%emt 0:02:36]} 4. e3 {[%emt 0:00:07]} Nc6 {[%emt 0:00:23]} 5. Nbd2 {[%emt 0:00:23]} Bg4 {[%emt 0:07:12][%cal Bc8g4,Bg4h5,Bh5g6][%mdl 32]} 6. c3 {[%emt 0:00:42]} e6 {[%emt 0:00:15]} 7. Qb3 {[%emt 0:01:58]} Qc8 {[%emt 0:07:23]} 8. h3 {[%emt 0:00:08]} Bh5 {[%emt 0:01:58]} 9. Be2 {[%emt 0:06:41]} Be7 {[%emt 0:00:46][%cal Bf8e7,Be7c5,Bc5b6][%mdl 32]} 10. dxc5 {[%emt 0:00:59]} Bxc5 {[%emt 0:00:50]} 11. g4 {[%emt 0:01:10]} Bg6 {[%emt 0:02:13]} 12. Nh4 {[%emt 0:00:11]} Ne4 {[%emt 0:04:30]} 13. Nxe4 {[%emt 0:05:04]} Bxe4 {[%emt 0:00:40]} 14. f3 {[%emt 0:00:32]} Bg6 {[%emt 0:09:41]} 15. O-O-O {[%emt 0:00:25]} Bb6 {[%emt 0:01:01]} 16. Nxg6 {[%emt 0:19:14]} (16. e4 {keeps more tension.} O-O 17. exd5 Nd4 18. Rxd4 Bxd4 19. Rd1) 16... hxg6 {[%emt 0:00:22]} 17. Kb1 {[%emt 0:00:33]} Bc7 {[%emt 0:00:43]} 18. c4 {[%emt 0:15:13] White is more active.} dxc4 {[%emt 0:13:17]} 19. Qxc4 {[%emt 0:02:03]} ({Don't play} 19. Bxc4 Bxf4 20. exf4 O-O $11) 19... Bxf4 {[%emt 0:01:04]} 20. exf4 {[%emt 0:12:21][%cal Of4f5]} Qc7 {[%emt 0:00:42]} 21. Qe4 {[%emt 0:10:47]} Rd8 {[%emt 0:06:47]} 22. Bb5 {[%emt 0:05:37]} O-O {[%emt 0:04:25]} 23. h4 {[%emt 0:06:10]} Rxd1+ {[%emt 0:02:20]} 24. Rxd1 {[%emt 0:00:05]} Rd8 {[%emt 0:00:05]} 25. Rc1 {[%emt 0:03:52]} Rd5 {[%emt 0:02:32]} 26. Qa4 {[%emt 0:01:01]} Rd6 {[%emt 0:01:43]} 27. a3 {[%emt 0:01:10] The position is equal.} Qb6 {[%emt 0:00:40]} 28. Bxc6 {[%emt 0:00:19]} bxc6 {[%emt 0:00:05]} 29. Ka2 {[%emt 0:01:48]} Rd2 {[%emt 0:07:38]} 30. Rc2 {[%emt 0:00:39]} Rxc2 {[%emt 0:00:09]} 31. Qxc2 {[%emt 0:00:12] Weighted Error Value: White=0.08 (flawless) /Black=0.06 (flawless) .  Inaccurate:     	White=2     	Black=2      OK:         	White=8     	Black=11     Best:        	White=3     	---} 1/2-1/2